[Event "January 9 Early 2024"]
[Site "https://www.chess.com"]
[Date "2024.01.11"]
[Round "6"]
[White "Bharath Subramaniyam H"]
[Black "Starozhilov, Leonid"]
[Result "1/2-1/2"]
[Board "276"]
[TimeControl "180+1"]
[WhiteFideId "46634827"]
[BlackFideId "14106752"]
[WhiteElo "2954"]
[BlackElo "2779"]
[WhiteTeam "IND"]
[BlackTeam "UKR"]
[WhiteClock "0:00:12"]
[BlackClock "0:00:14"]

1. b3 {[%clk 0:03:00]}  d5 {[%clk 0:02:59]} 2. Bb2 {[%clk 0:03:00]}  Bf5 {[%clk 0:03:00]} 3. d3 {[%clk 0:03:00]}  h6 {[%clk 0:03:00]} 4. Nd2 {[%clk 0:02:59]}  e6 {[%clk 0:03:01]} 5. e4 {[%clk 0:02:59]}  Bh7 {[%clk 0:03:01]} 6. g3 {[%clk 0:02:59]}  Nf6 {[%clk 0:03:01]} 7. Bg2 {[%clk 0:03:00]}  c6 {[%clk 0:03:01]} 8. Qe2 {[%clk 0:03:00]}  a5 {[%clk 0:03:02]} 9. a3 {[%clk 0:02:59]}  Nbd7 {[%clk 0:03:01]} 10. Ngf3 {[%clk 0:03:00]}  Bc5 {[%clk 0:02:56]} 11. e5 {[%clk 0:02:59]}  Ng8 {[%clk 0:02:56]} 12. d4 {[%clk 0:02:54]}  Ba7 {[%clk 0:02:53]} 13. c4 {[%clk 0:02:55]}  Ne7 {[%clk 0:02:44]} 14. O-O {[%clk 0:02:56]}  O-O {[%clk 0:02:44]} 15. h4 {[%clk 0:02:53]}  a4 {[%clk 0:02:18]} 16. b4 {[%clk 0:02:51]}  dxc4 {[%clk 0:02:11]} 17. Nxc4 {[%clk 0:02:52]}  Nd5 {[%clk 0:01:56]} 18. Nfd2 {[%clk 0:02:47]}  Bb8 {[%clk 0:01:51]} 19. Ne4 {[%clk 0:02:45]}  N7b6 {[%clk 0:01:40]} 20. Ncd6 {[%clk 0:02:44]}  Bxd6 {[%clk 0:01:34]} 21. Nxd6 {[%clk 0:02:44]}  Qd7 {[%clk 0:01:34]} 22. f4 {[%clk 0:02:22]}  Nc8 {[%clk 0:01:31]} 23. Ne4 {[%clk 0:02:21]}  Bxe4 {[%clk 0:01:13]} 24. Bxe4 {[%clk 0:02:22]}  f5 {[%clk 0:01:13]} 25. Bc2 {[%clk 0:02:02]}  b5 {[%clk 0:01:09]} 26. Qd3 {[%clk 0:01:56]}  Ncb6 {[%clk 0:01:08]} 27. Rf2 {[%clk 0:01:51]}  h5 {[%clk 0:01:07]} 28. Re1 {[%clk 0:01:47]}  g6 {[%clk 0:01:06]} 29. Bc1 {[%clk 0:01:42]}  Rac8 {[%clk 0:01:06]} 30. Rh2 {[%clk 0:01:40]}  Kg7 {[%clk 0:01:03]} 31. Kf2 {[%clk 0:01:39]}  Rh8 {[%clk 0:01:02]} 32. Rg1 {[%clk 0:01:39]}  Kf7 {[%clk 0:00:56]} 33. Rgh1 {[%clk 0:01:35]}  Rcg8 {[%clk 0:00:50]} 34. Bd1 {[%clk 0:01:34]}  Ke7 {[%clk 0:00:40]} 35. Bf3 {[%clk 0:01:33]}  Kd8 {[%clk 0:00:40]} 36. Bb2 {[%clk 0:01:32]}  Ke7 {[%clk 0:00:37]} 37. Rc1 {[%clk 0:01:32]}  Rc8 {[%clk 0:00:36]} 38. Rc2 {[%clk 0:01:32]}  Rc7 {[%clk 0:00:35]} 39. Rh1 {[%clk 0:01:32]}  Rhc8 {[%clk 0:00:34]} 40. Rhc1 {[%clk 0:01:32]}  Kf7 {[%clk 0:00:34]} 41. Rc5 {[%clk 0:01:31]}  Qe8 {[%clk 0:00:29]} 42. Qc2 {[%clk 0:01:30]}  Qd7 {[%clk 0:00:29]} 43. Be2 {[%clk 0:01:29]}  Kg7 {[%clk 0:00:28]} 44. Qd1 {[%clk 0:01:28]}  Kh6 {[%clk 0:00:21]} 45. R1c2 {[%clk 0:01:28]}  Kg7 {[%clk 0:00:21]} 46. Qc1 {[%clk 0:01:28]}  Kf7 {[%clk 0:00:20]} 47. Bc3 {[%clk 0:01:27]}  Kg7 {[%clk 0:00:20]} 48. Bd2 {[%clk 0:01:27]}  Kf7 {[%clk 0:00:20]} 49. Bd3 {[%clk 0:01:20]}  Kg7 {[%clk 0:00:20]} 50. Qb1 {[%clk 0:01:17]}  Kf7 {[%clk 0:00:20]} 51. Rc1 {[%clk 0:01:18]}  Kg7 {[%clk 0:00:20]} 52. Rh1 {[%clk 0:01:16]}  Qf7 {[%clk 0:00:19]} 53. Rcc1 {[%clk 0:01:15]}  Rh8 {[%clk 0:00:19]} 54. Qc2 {[%clk 0:01:07]}  Qd7 {[%clk 0:00:19]} 55. Qc5 {[%clk 0:01:08]}  Rhc8 {[%clk 0:00:18]} 56. Rhe1 {[%clk 0:01:06]}  Kf7 {[%clk 0:00:17]} 57. Be2 {[%clk 0:01:00]}  Rd8 {[%clk 0:00:17]} 58. Bf3 {[%clk 0:00:59]}  Rdc8 {[%clk 0:00:17]} 59. Rc2 {[%clk 0:00:57]}  Qe7 {[%clk 0:00:17]} 60. Rec1 {[%clk 0:00:48]}  Qxc5 {[%clk 0:00:17]} 61. dxc5 {[%clk 0:00:47]}  Nd7 {[%clk 0:00:16]} 62. Re1 {[%clk 0:00:40]}  Nb8 {[%clk 0:00:16]} 63. Rcc1 {[%clk 0:00:38]}  Rd7 {[%clk 0:00:16]} 64. Rcd1 {[%clk 0:00:38]}  Rcd8 {[%clk 0:00:17]} 65. Bc1 {[%clk 0:00:37]}  Na6 {[%clk 0:00:17]} 66. Rd4 {[%clk 0:00:36]}  Nac7 {[%clk 0:00:17]} 67. Red1 {[%clk 0:00:37]}  Ke8 {[%clk 0:00:16]} 68. Be2 {[%clk 0:00:36]}  Kf7 {[%clk 0:00:17]} 69. Rh1 {[%clk 0:00:31]}  Kg7 {[%clk 0:00:17]} 70. Ke1 {[%clk 0:00:29]}  Rh8 {[%clk 0:00:17]} 71. Bf3 {[%clk 0:00:26]}  Rhd8 {[%clk 0:00:17]} 72. Bd2 {[%clk 0:00:26]}  Rh8 {[%clk 0:00:17]} 73. Rd3 {[%clk 0:00:26]}  Rhd8 {[%clk 0:00:17]} 74. Rd4 {[%clk 0:00:23]}  Ne8 {[%clk 0:00:17]} 75. Bc1 {[%clk 0:00:21]}  Nec7 {[%clk 0:00:18]} 76. Rh2 {[%clk 0:00:22]}  Ne8 {[%clk 0:00:17]} 77. Bb2 {[%clk 0:00:22]}  Nec7 {[%clk 0:00:17]} 78. Rhd2 {[%clk 0:00:22]}  Kf7 {[%clk 0:00:17]} 79. Kf2 {[%clk 0:00:22]}  Kg7 {[%clk 0:00:18]} 80. R4d3 {[%clk 0:00:22]}  Kf7 {[%clk 0:00:18]} 81. Bd4 {[%clk 0:00:18]}  Kg7 {[%clk 0:00:19]} 82. Be3 {[%clk 0:00:18]}  Kf7 {[%clk 0:00:19]} 83. Bg2 {[%clk 0:00:17]}  Kg7 {[%clk 0:00:19]} 84. Rd1 {[%clk 0:00:16]}  Kf7 {[%clk 0:00:18]} 85. Bc1 {[%clk 0:00:16]}  Kg7 {[%clk 0:00:19]} 86. g4 {[%clk 0:00:11]}  hxg4 {[%clk 0:00:18]} 87. Kg3 {[%clk 0:00:11]}  Rh8 {[%clk 0:00:18]} 88. Rh1 {[%clk 0:00:10]}  Rh5 {[%clk 0:00:18]} 89. Rdd1 {[%clk 0:00:10]}  Kf7 {[%clk 0:00:19]} 90. Bd2 {[%clk 0:00:10]}  Rd8 {[%clk 0:00:19]} 91. Bc1 {[%clk 0:00:10]}  Rdh8 {[%clk 0:00:19]} 92. Bd2 {[%clk 0:00:11]}  Ke7 {[%clk 0:00:17]} 93. Bc1 {[%clk 0:00:11]}  Kf7 {[%clk 0:00:14]} 94. Bd2 {[%clk 0:00:12]}  R8h7 {[%clk 0:00:13]} 95. Bc1 {[%clk 0:00:12]}  Rh8 {[%clk 0:00:14]} 1/2-1/2

[Event "January 9 Early 2024"]
[Site "https://www.chess.com"]
[Date "2024.01.11"]
[Round "6"]
[White "Pranesh M"]
[Black "Samunenkov, Ihor"]
[Result "1/2-1/2"]
[Board "277"]
[TimeControl "180+1"]
[WhiteFideId "35028600"]
[BlackFideId "14187086"]
[WhiteElo "2941"]
[BlackElo "2777"]
[WhiteTeam "IND"]
[BlackTeam "UKR"]
[WhiteClock "0:00:05"]
[BlackClock "0:00:10"]

1. e4 {[%clk 0:03:00]}  e5 {[%clk 0:03:00]} 2. Nf3 {[%clk 0:03:00]}  Nf6 {[%clk 0:03:01]} 3. Nc3 {[%clk 0:02:51]}  Nc6 {[%clk 0:03:01]} 4. d4 {[%clk 0:02:50]}  exd4 {[%clk 0:03:01]} 5. Nd5 {[%clk 0:02:50]}  Be7 {[%clk 0:02:43]} 6. Bc4 {[%clk 0:02:48]}  O-O {[%clk 0:02:41]} 7. O-O {[%clk 0:02:45]}  d6 {[%clk 0:02:41]} 8. Nxd4 {[%clk 0:02:39]}  Nxd4 {[%clk 0:02:38]} 9. Qxd4 {[%clk 0:02:40]}  Nxd5 {[%clk 0:02:39]} 10. Bxd5 {[%clk 0:02:40]}  Bf6 {[%clk 0:02:38]} 11. Qd3 {[%clk 0:02:40]}  c6 {[%clk 0:02:37]} 12. Bb3 {[%clk 0:02:40]}  Be6 {[%clk 0:02:32]} 13. c3 {[%clk 0:02:39]}  Bxb3 {[%clk 0:02:27]} 14. axb3 {[%clk 0:02:40]}  Qe7 {[%clk 0:02:22]} 15. Bf4 {[%clk 0:02:35]}  Rfd8 {[%clk 0:02:14]} 16. Rfe1 {[%clk 0:02:32]}  a6 {[%clk 0:02:03]} 17. Rad1 {[%clk 0:02:30]}  Be5 {[%clk 0:02:03]} 18. Bc1 {[%clk 0:02:26]}  d5 {[%clk 0:01:53]} 19. g3 {[%clk 0:02:26]}  dxe4 {[%clk 0:01:42]} 20. Qxe4 {[%clk 0:02:26]}  Rxd1 {[%clk 0:01:43]} 21. Rxd1 {[%clk 0:02:26]}  Re8 {[%clk 0:01:43]} 22. Be3 {[%clk 0:02:19]}  g6 {[%clk 0:01:41]} 23. Kg2 {[%clk 0:02:12]}  Qe6 {[%clk 0:01:31]} 24. b4 {[%clk 0:02:10]}  Kg7 {[%clk 0:01:29]} 25. Qd3 {[%clk 0:02:06]}  Bf6 {[%clk 0:01:28]} 26. Bc5 {[%clk 0:01:57]}  Rd8 {[%clk 0:01:24]} 27. Qc2 {[%clk 0:01:49]}  Rxd1 {[%clk 0:01:23]} 28. Qxd1 {[%clk 0:01:50]}  Qe4+ {[%clk 0:01:23]} 29. Kg1 {[%clk 0:01:44]}  h5 {[%clk 0:01:15]} 30. h4 {[%clk 0:01:44]}  Qe6 {[%clk 0:01:14]} 31. Kh2 {[%clk 0:01:42]}  Be7 {[%clk 0:01:13]} 32. Qd4+ {[%clk 0:01:42]}  Kg8 {[%clk 0:01:08]} 33. Bb6 {[%clk 0:01:39]}  Bf6 {[%clk 0:01:08]} 34. Qf4 {[%clk 0:01:38]}  Be5 {[%clk 0:01:06]} 35. Qf3 {[%clk 0:01:38]}  Kg7 {[%clk 0:01:04]} 36. Qd3 {[%clk 0:01:36]}  Bf6 {[%clk 0:01:02]} 37. Bc5 {[%clk 0:01:34]}  Be7 {[%clk 0:01:01]} 38. Qd4+ {[%clk 0:01:33]}  Kg8 {[%clk 0:01:00]} 39. Bb6 {[%clk 0:01:33]}  Bf6 {[%clk 0:01:00]} 40. Qd2 {[%clk 0:01:34]}  Kg7 {[%clk 0:01:00]} 41. Qd3 {[%clk 0:01:32]}  Kg8 {[%clk 0:00:57]} 42. Qf3 {[%clk 0:01:31]}  Kg7 {[%clk 0:00:56]} 43. Qf4 {[%clk 0:01:31]}  Be5 {[%clk 0:00:55]} 44. Qd2 {[%clk 0:01:26]}  Bf6 {[%clk 0:00:54]} 45. Be3 {[%clk 0:01:24]}  Kg8 {[%clk 0:00:53]} 46. Qd3 {[%clk 0:01:22]}  Kg7 {[%clk 0:00:52]} 47. Bc5 {[%clk 0:01:22]}  Be7 {[%clk 0:00:52]} 48. Be3 {[%clk 0:01:15]}  Bf6 {[%clk 0:00:52]} 49. Qd1 {[%clk 0:01:13]}  Be7 {[%clk 0:00:50]} 50. Qd2 {[%clk 0:01:12]}  Bf6 {[%clk 0:00:50]} 51. Bh6+ {[%clk 0:01:13]}  Kh7 {[%clk 0:00:50]} 52. Bf8 {[%clk 0:01:11]}  Kg8 {[%clk 0:00:49]} 53. Bc5 {[%clk 0:01:12]}  Be7 {[%clk 0:00:49]} 54. Be3 {[%clk 0:01:08]}  Bf6 {[%clk 0:00:48]} 55. Kg1 {[%clk 0:01:09]}  Kg7 {[%clk 0:00:48]} 56. Bh6+ {[%clk 0:01:07]}  Kh7 {[%clk 0:00:48]} 57. Bf4 {[%clk 0:01:06]}  Kg7 {[%clk 0:00:42]} 58. Qd3 {[%clk 0:01:06]}  Be5 {[%clk 0:00:40]} 59. Be3 {[%clk 0:01:02]}  Bf6 {[%clk 0:00:40]} 60. Bc5 {[%clk 0:00:59]}  Be7 {[%clk 0:00:40]} 61. Qd4+ {[%clk 0:00:58]}  Bf6 {[%clk 0:00:40]} 62. Qd1 {[%clk 0:00:57]}  Be7 {[%clk 0:00:40]} 63. Be3 {[%clk 0:00:58]}  Bf6 {[%clk 0:00:40]} 64. Qf3 {[%clk 0:00:50]}  Be7 {[%clk 0:00:38]} 65. Qf4 {[%clk 0:00:48]}  Bd6 {[%clk 0:00:33]} 66. Bd4+ {[%clk 0:00:43]}  Kg8 {[%clk 0:00:31]} 67. Qg5 {[%clk 0:00:41]}  Be7 {[%clk 0:00:28]} 68. Qf4 {[%clk 0:00:36]}  Bd6 {[%clk 0:00:28]} 69. Qf3 {[%clk 0:00:26]}  Be5 {[%clk 0:00:28]} 70. Bc5 {[%clk 0:00:26]}  Bd6 {[%clk 0:00:28]} 71. Be3 {[%clk 0:00:26]}  Be5 {[%clk 0:00:28]} 72. Qd1 {[%clk 0:00:23]}  Bf6 {[%clk 0:00:26]} 73. Qd3 {[%clk 0:00:20]}  Kg7 {[%clk 0:00:26]} 74. Kh2 {[%clk 0:00:20]}  Kg8 {[%clk 0:00:26]} 75. Bc5 {[%clk 0:00:18]}  Be7 {[%clk 0:00:25]} 76. Bb6 {[%clk 0:00:17]}  Bf6 {[%clk 0:00:24]} 77. Qf3 {[%clk 0:00:18]}  Kg7 {[%clk 0:00:24]} 78. Qf4 {[%clk 0:00:18]}  Be5 {[%clk 0:00:23]} 79. Qe3 {[%clk 0:00:18]}  Bf6 {[%clk 0:00:22]} 80. Qxe6 {[%clk 0:00:17]}  fxe6 {[%clk 0:00:22]} 81. Kg2 {[%clk 0:00:17]}  Kf7 {[%clk 0:00:22]} 82. Kf3 {[%clk 0:00:18]}  Bg7 {[%clk 0:00:19]} 83. Be3 {[%clk 0:00:18]}  Bf6 {[%clk 0:00:19]} 84. Ke4 {[%clk 0:00:18]}  Bg7 {[%clk 0:00:19]} 85. Bd2 {[%clk 0:00:19]}  Ke7 {[%clk 0:00:17]} 86. b3 {[%clk 0:00:17]}  Kd7 {[%clk 0:00:17]} 87. c4 {[%clk 0:00:17]}  Bf8 {[%clk 0:00:17]} 88. Bc3 {[%clk 0:00:12]}  Bd6 {[%clk 0:00:16]} 89. c5 {[%clk 0:00:07]}  Bf8 {[%clk 0:00:17]} 90. Bf6 {[%clk 0:00:07]}  Bh6 {[%clk 0:00:13]} 91. Bg5 {[%clk 0:00:03]}  Bg7 {[%clk 0:00:13]} 92. Bd2 {[%clk 0:00:03]}  Bf6 {[%clk 0:00:12]} 93. f3 {[%clk 0:00:04]}  Ke8 {[%clk 0:00:10]} 94. Be1 {[%clk 0:00:04]}  Kd7 {[%clk 0:00:10]} 95. Bd2 {[%clk 0:00:05]}  Ke8 {[%clk 0:00:10]} 96. Kd3 {[%clk 0:00:05]}  Kd7 {[%clk 0:00:10]} 97. Ke4 {[%clk 0:00:05]} 1/2-1/2

[Event "January 9 Early 2024"]
[Site "https://www.chess.com"]
[Date "2024.01.11"]
[Round "6"]
[White "Sierra Vallina, Lionel"]
[Black "Molina, Roberto Junio Brito"]
[Result "1/2-1/2"]
[Board "278"]
[TimeControl "180+1"]
[WhiteFideId "54559774"]
[BlackFideId "2109450"]
[WhiteElo "2633"]
[BlackElo "2801"]
[WhiteTeam "ESP"]
[BlackTeam "BRA"]
[WhiteClock "0:00:06"]
[BlackClock "0:00:17"]

1. e4 {[%clk 0:03:00]}  c6 {[%clk 0:02:58]} 2. d4 {[%clk 0:03:00]}  d5 {[%clk 0:02:58]} 3. e5 {[%clk 0:03:00]}  Bf5 {[%clk 0:02:58]} 4. Bd3 {[%clk 0:03:01]}  Bxd3 {[%clk 0:02:58]} 5. Qxd3 {[%clk 0:03:02]}  e6 {[%clk 0:02:58]} 6. c3 {[%clk 0:03:02]}  c5 {[%clk 0:02:58]} 7. Ne2 {[%clk 0:03:02]}  Nc6 {[%clk 0:02:58]} 8. O-O {[%clk 0:03:03]}  Rc8 {[%clk 0:02:57]} 9. Nd2 {[%clk 0:03:02]}  Qb6 {[%clk 0:02:56]} 10. Nf3 {[%clk 0:03:01]}  Qa6 {[%clk 0:02:54]} 11. Qd1 {[%clk 0:03:00]}  cxd4 {[%clk 0:02:50]} 12. cxd4 {[%clk 0:03:01]}  Nge7 {[%clk 0:02:50]} 13. Ng3 {[%clk 0:02:57]}  Rc7 {[%clk 0:02:42]} 14. Be3 {[%clk 0:02:55]}  Nc8 {[%clk 0:02:40]} 15. Nh5 {[%clk 0:02:53]}  Nb6 {[%clk 0:02:30]} 16. b3 {[%clk 0:02:53]}  Nd7 {[%clk 0:02:29]} 17. Ng5 {[%clk 0:02:41]}  h6 {[%clk 0:02:22]} 18. Nf3 {[%clk 0:02:35]}  g6 {[%clk 0:02:19]} 19. Nf6+ {[%clk 0:02:34]}  Nxf6 {[%clk 0:02:19]} 20. exf6 {[%clk 0:02:34]}  Bd6 {[%clk 0:02:19]} 21. Qd2 {[%clk 0:02:29]}  g5 {[%clk 0:02:13]} 22. h4 {[%clk 0:02:29]}  g4 {[%clk 0:02:01]} 23. Nh2 {[%clk 0:02:17]}  h5 {[%clk 0:02:00]} 24. Bf4 {[%clk 0:02:18]}  Bxf4 {[%clk 0:01:30]} 25. Qxf4 {[%clk 0:02:19]}  Qb6 {[%clk 0:01:29]} 26. Rac1 {[%clk 0:02:10]}  Kd7 {[%clk 0:01:25]} 27. Rc5 {[%clk 0:01:58]}  Kc8 {[%clk 0:01:20]} 28. Rfc1 {[%clk 0:01:57]}  Kb8 {[%clk 0:01:15]} 29. Nf1 {[%clk 0:01:57]}  Ka8 {[%clk 0:01:13]} 30. Ng3 {[%clk 0:01:56]}  Rd7 {[%clk 0:01:10]} 31. Qg5 {[%clk 0:01:56]}  a6 {[%clk 0:01:06]} 32. Qg7 {[%clk 0:01:27]}  Rhd8 {[%clk 0:01:05]} 33. Nxh5 {[%clk 0:01:25]}  Nxd4 {[%clk 0:01:04]} 34. Qxg4 {[%clk 0:01:25]}  e5 {[%clk 0:00:54]} 35. Rc8+ {[%clk 0:01:23]}  Ka7 {[%clk 0:00:54]} 36. Ng3 {[%clk 0:01:19]}  Qxf6 {[%clk 0:00:50]} 37. Rxd8 {[%clk 0:01:16]}  Rxd8 {[%clk 0:00:46]} 38. h5 {[%clk 0:01:06]}  e4 {[%clk 0:00:33]} 39. Rd1 {[%clk 0:00:27]}  Rd6 {[%clk 0:00:26]} 40. Qc8 {[%clk 0:00:22]}  Nc6 {[%clk 0:00:24]} 41. Qg4 {[%clk 0:00:20]}  Qe5 {[%clk 0:00:21]} 42. Qe2 {[%clk 0:00:18]}  f5 {[%clk 0:00:19]} 43. h6 {[%clk 0:00:12]}  d4 {[%clk 0:00:17]} 44. h7 {[%clk 0:00:12]}  Rh6 {[%clk 0:00:17]} 45. Qc2 {[%clk 0:00:03]}  Rxh7 {[%clk 0:00:16]} 46. b4 {[%clk 0:00:03]}  Nxb4 {[%clk 0:00:12]} 47. Qc4 {[%clk 0:00:04]}  Nc6 {[%clk 0:00:12]} 48. Rb1 {[%clk 0:00:02]}  Rd7 {[%clk 0:00:08]} 49. Qb3 {[%clk 0:00:02]}  Qb5 {[%clk 0:00:04]} 50. Qxb5 {[%clk 0:00:01]}  axb5 {[%clk 0:00:05]} 51. Rxb5 {[%clk 0:00:01]}  e3 {[%clk 0:00:05]} 52. Rb1 {[%clk 0:00:02]}  f4 {[%clk 0:00:05]} 53. Nf1 {[%clk 0:00:01]}  d3 {[%clk 0:00:05]} 54. fxe3 {[%clk 0:00:01]}  fxe3 {[%clk 0:00:06]} 55. Nxe3 {[%clk 0:00:02]}  Nd4 {[%clk 0:00:06]} 56. Rd1 {[%clk 0:00:03]}  Ne2+ {[%clk 0:00:06]} 57. Kf2 {[%clk 0:00:04]}  Nc3 {[%clk 0:00:07]} 58. Rd2 {[%clk 0:00:04]}  Ne4+ {[%clk 0:00:07]} 59. Ke1 {[%clk 0:00:05]}  Nxd2 {[%clk 0:00:08]} 60. Kxd2 {[%clk 0:00:06]}  Kb6 {[%clk 0:00:09]} 61. g4 {[%clk 0:00:06]}  Kc5 {[%clk 0:00:09]} 62. Kc3 {[%clk 0:00:06]}  Kd6 {[%clk 0:00:09]} 63. Kxd3 {[%clk 0:00:06]}  Ke5+ {[%clk 0:00:10]} 64. Kc3 {[%clk 0:00:06]}  Kf4 {[%clk 0:00:10]} 65. Nc4 {[%clk 0:00:06]}  Rc7 {[%clk 0:00:09]} 66. Kb4 {[%clk 0:00:07]}  Kxg4 {[%clk 0:00:10]} 67. Kb5 {[%clk 0:00:06]}  Kf5 {[%clk 0:00:10]} 68. a4 {[%clk 0:00:07]}  Ke6 {[%clk 0:00:10]} 69. a5 {[%clk 0:00:07]}  Kd7 {[%clk 0:00:11]} 70. Nb6+ {[%clk 0:00:07]}  Kd6 {[%clk 0:00:11]} 71. a6 {[%clk 0:00:07]}  bxa6+ {[%clk 0:00:11]} 72. Kxa6 {[%clk 0:00:08]}  Kc6 {[%clk 0:00:12]} 73. Nc4 {[%clk 0:00:06]}  Kc5 {[%clk 0:00:12]} 74. Na5 {[%clk 0:00:06]}  Rc8 {[%clk 0:00:12]} 75. Kb7 {[%clk 0:00:05]}  Rh8 {[%clk 0:00:12]} 76. Kc7 {[%clk 0:00:03]}  Rh7+ {[%clk 0:00:12]} 77. Kc8 {[%clk 0:00:04]}  Ra7 {[%clk 0:00:12]} 78. Nb7+ {[%clk 0:00:04]}  Kb6 {[%clk 0:00:12]} 79. Nd8 {[%clk 0:00:04]}  Kc5 {[%clk 0:00:12]} 80. Nb7+ {[%clk 0:00:04]}  Kd5 {[%clk 0:00:12]} 81. Nd8 {[%clk 0:00:04]}  Kd6 {[%clk 0:00:13]} 82. Nb7+ {[%clk 0:00:05]}  Ke5 {[%clk 0:00:14]} 83. Nd8 {[%clk 0:00:05]}  Rh7 {[%clk 0:00:14]} 84. Nb7 {[%clk 0:00:04]}  Kd5 {[%clk 0:00:15]} 85. Nd8 {[%clk 0:00:04]}  Rh8 {[%clk 0:00:15]} 86. Kd7 {[%clk 0:00:04]}  Rg8 {[%clk 0:00:16]} 87. Nb7 {[%clk 0:00:04]}  Rg7+ {[%clk 0:00:16]} 88. Kc8 {[%clk 0:00:04]}  Kc6 {[%clk 0:00:17]} 89. Nd8+ {[%clk 0:00:05]}  Kd6 {[%clk 0:00:17]} 90. Nb7+ {[%clk 0:00:05]}  Kd5 {[%clk 0:00:18]} 91. Nd8 {[%clk 0:00:06]}  Rh7 {[%clk 0:00:18]} 92. Nb7 {[%clk 0:00:06]}  Ke6 {[%clk 0:00:19]} 93. Nd8+ {[%clk 0:00:07]}  Ke7 {[%clk 0:00:20]} 94. Kc7 {[%clk 0:00:06]}  Ke8+ {[%clk 0:00:20]} 95. Kc8 {[%clk 0:00:07]}  Rh1 {[%clk 0:00:20]} 96. Nb7 {[%clk 0:00:07]}  Rc1+ {[%clk 0:00:20]} 97. Kb8 {[%clk 0:00:08]}  Kd7 {[%clk 0:00:21]} 98. Ka7 {[%clk 0:00:08]}  Ra1+ {[%clk 0:00:20]} 99. Kb6 {[%clk 0:00:08]}  Rb1+ {[%clk 0:00:21]} 100. Ka6 {[%clk 0:00:08]}  Kc7 {[%clk 0:00:20]} 101. Na5 {[%clk 0:00:09]}  Rb6+ {[%clk 0:00:20]} 102. Ka7 {[%clk 0:00:09]}  Rb4 {[%clk 0:00:20]} 103. Ka6 {[%clk 0:00:09]}  Rb1 {[%clk 0:00:20]} 104. Nc4 {[%clk 0:00:08]}  Rb4 {[%clk 0:00:21]} 105. Na5 {[%clk 0:00:08]}  Rb8 {[%clk 0:00:21]} 106. Nc4 {[%clk 0:00:07]}  Kc6 {[%clk 0:00:22]} 107. Na5+ {[%clk 0:00:08]}  Kc5 {[%clk 0:00:23]} 108. Nb7+ {[%clk 0:00:08]}  Kc6 {[%clk 0:00:23]} 109. Na5+ {[%clk 0:00:09]}  Kc7 {[%clk 0:00:24]} 110. Nc4 {[%clk 0:00:09]}  Rb1 {[%clk 0:00:23]} 111. Na5 {[%clk 0:00:09]}  Rb6+ {[%clk 0:00:23]} 112. Ka7 {[%clk 0:00:09]}  Rh6 {[%clk 0:00:24]} 113. Nc4 {[%clk 0:00:09]}  Rh4 {[%clk 0:00:24]} 114. Na5 {[%clk 0:00:09]}  Rh6 {[%clk 0:00:23]} 115. Nc4 {[%clk 0:00:08]}  Rg6 {[%clk 0:00:23]} 116. Na5 {[%clk 0:00:08]}  Rf6 {[%clk 0:00:22]} 117. Nc4 {[%clk 0:00:08]}  Rf1 {[%clk 0:00:19]} 118. Ka6 {[%clk 0:00:07]}  Rc1 {[%clk 0:00:18]} 119. Kb5 {[%clk 0:00:06]}  Kd7 {[%clk 0:00:17]} 120. Kc5 {[%clk 0:00:07]}  Ke6 {[%clk 0:00:17]} 121. Kd4 {[%clk 0:00:07]}  Ra1 {[%clk 0:00:17]} 122. Kc5 {[%clk 0:00:06]} 1/2-1/2